lending/lending_fUSD_20260110
["ID","MTS","AMOUNT","RATE_DAILY","PERIOD"]
[401264165,1768083043466,-1000.0,0.00021432,2]
[401264167,1768083043476,-250.0,0.00021432,2]
[401264169,1768083043486,-1000.0,0.00021432,2]
[401264171,1768083043496,-250.0,0.00021432,2]
[401264173,1768083043506,-250.0,0.00021432,2]
[401264175,1768083043515,-250.0,0.00021432,2]
[401264177,1768083043525,-998.0,0.00021432,2]
[401264179,1768083043539,-250.0,0.00021432,2]
[401264181,1768083043549,-250.0,0.00021432,2]
[401264183,1768083043559,-250.0,0.00021432,2]
[401264185,1768083043569,-500.0,0.00021432,2]
[401264188,1768083043580,-500.0,0.00021432,2]
[401264190,1768083043591,-500.0,0.00021432,2]
[401264192,1768083043601,-500.0,0.00021432,2]
[401264193,1768083043610,-500.0,0.00021432,2]
[401264195,1768083043620,-500.0,0.00021432,2]
[401264197,1768083043630,-500.0,0.00021432,2]
[401264200,1768083043640,-250.0,0.00021432,2]
[401264202,1768083043649,-250.0,0.00021432,2]
[401264204,1768083043659,-500.0,0.00021432,2]
[401264205,1768083043668,-250.0,0.00021432,2]
[401264207,1768083043678,-250.0,0.00021432,2]
[401264209,1768083043688,-500.0,0.00021432,2]
[401264212,1768083043699,-250.0,0.00021432,2]
[401264214,1768083043708,-250.0,0.00021432,2]
[401264215,1768083043719,-500.0,0.00021432,2]
[401264217,1768083043729,-250.0,0.00021432,2]
[401264220,1768083043739,-250.0,0.00021432,2]
[401264221,1768083043748,-500.0,0.00021432,2]
[401264223,1768083043758,-250.0,0.00021432,2]
[401264226,1768083043768,-250.0,0.00021432,2]
[401264228,1768083043778,-500.0,0.00021432,2]
[401264230,1768083043787,-250.0,0.00021432,2]
[401264231,1768083043796,-250.0,0.00021432,2]
[401264234,1768083043807,-204.8394393,0.00021432,2]
[401264236,1768083043817,-250.0,0.00021432,2]
[401264238,1768083043826,-250.0,0.00021432,2]
[401264240,1768083043835,-409.02215808,0.00021432,2]
[401264242,1768083043845,-553.64373807,0.00021432,2]
[401264244,1768083043855,-500.0,0.00021432,2]
[401264246,1768083043864,-500.0,0.00021432,2]
[401264247,1768083043874,-500.0,0.00021432,2]
[401264250,1768083043884,-500.0,0.00021432,2]
[401264251,1768083043893,-500.0,0.00021432,2]
[401264254,1768083043904,-500.0,0.00021432,2]
[401264256,1768083043915,-500.0,0.00021432,2]
[401264257,1768083043925,-500.0,0.00021432,2]
[401264259,1768083043934,-500.0,0.00021432,2]
[401264261,1768083043944,-500.0,0.00021432,2]
[401264264,1768083043954,-500.0,0.00021432,2]
[401264266,1768083043964,-500.0,0.00021432,2]
[401264268,1768083043975,-566.0,0.00021566,2]
[401264270,1768083043985,-6554.0,0.00021566,2]
[401264272,1768083043995,-2437.0,0.00021566,2]
[401264274,1768083044004,-168.0,0.00021569,2]
[401264276,1768083044012,-450.0,0.00021616,2]
[401264278,1768083044022,-1266.47,0.00021757,2]
[401264280,1768083044031,-1197.7,0.00021757,2]
[401264281,1768083044040,-164.0,0.00021918,2]
[401264284,1768083044050,-164.22355979,0.00021918,2]
[401264286,1768083044059,-164.0,0.00021918,2]
[401264287,1768083044070,-164.0,0.00021918,2]
[401264289,1768083044079,-159.51715736,0.00021918,2]
[401264292,1768083044089,-154.0,0.00021918,2]
[401264294,1768083044099,-154.0,0.00021918,2]
[401264296,1768083044110,-154.0,0.00021918,2]
[401264298,1768083044121,-154.0,0.00021918,2]
[401264299,1768083044130,-154.0,0.00021918,2]
[401264302,1768083044140,-154.0,0.00021918,2]
[401264304,1768083044149,-154.0,0.00021918,2]
[401264306,1768083044159,-154.0,0.00021918,2]
[401264307,1768083044169,-154.0,0.00021918,2]
[401264309,1768083044178,-154.0,0.00021918,2]
[401264312,1768083044188,-154.0,0.00021918,2]
[401264314,1768083044197,-154.0,0.00021918,2]
[401264315,1768083044206,-154.0,0.00021918,2]
[401264317,1768083044216,-300.86072752,0.00021918,2]
[401264319,1768083044225,-154.0,0.00021918,2]
[401264321,1768083044235,-154.0,0.00021918,2]
[401264324,1768083044245,-155.77662922,0.00021918,2]
[401264326,1768083044255,-208.55924398,0.00021918,2]
[401264328,1768083044264,-500.0,0.00021918,2]
[401264330,1768083044274,-150.0,0.00021918,2]
[401264332,1768083044285,-500.0,0.00021918,2]
[401264334,1768083044295,-500.0,0.00021918,2]
[401264336,1768083044305,-500.0,0.00021918,2]
[401264338,1768083044315,-500.0,0.00021918,2]
[401264340,1768083044324,-500.0,0.00021918,2]
[401264342,1768083044334,-500.0,0.00021918,2]
[401264344,1768083044343,-500.0,0.00021918,2]
[401264346,1768083044353,-500.0,0.00021918,2]
[401264348,1768083044363,-500.0,0.00021918,2]
[401264350,1768083044372,-500.0,0.00021918,2]
[401264352,1768083044382,-500.0,0.00021918,2]
[401264354,1768083044391,-500.0,0.00021918,2]
[401264356,1768083044401,-500.0,0.00021918,2]
[401264358,1768083044411,-500.0,0.00021918,2]
[401264360,1768083044422,-500.0,0.00021918,2]
[401264362,1768083044432,-500.0,0.00021918,2]
[401264364,1768083044442,-500.0,0.00021918,2]
[401264367,1768083044452,-500.0,0.00021918,2]
[401264368,1768083044462,-500.0,0.00021918,2]
[401264371,1768083044472,-500.0,0.00021918,2]
[401264372,1768083044482,-500.0,0.00021918,2]
[401264373,1768083044491,-259.05909661,0.00021918,2]
[401264374,1768083044501,-500.0,0.00021918,2]
[401264375,1768083044510,-500.0,0.00021918,2]
[401264376,1768083044519,-500.0,0.00021918,2]
[401264377,1768083044531,-614.0,0.00021922,2]
[401264378,1768083044541,-1405.0,0.00021922,2]
[401264379,1768083044550,-3468.0,0.00021922,2]
[401264380,1768083044559,-505.0,0.00021922,2]
[401264381,1768083044568,-1266.0,0.00021922,2]
[401264383,1768083044578,-500.0,0.00021973,2]
[401264385,1768083044588,-500.0,0.00021973,2]
[401264387,1768083044598,-151.0,0.0002198,2]
[401264389,1768083044609,-196.88925333,0.0002198,2]
[401264391,1768083044621,-800.0,0.00022,8]
[401264393,1768083044630,-800.0,0.00022,8]
[401264395,1768083044640,-800.0,0.00022,8]
[401264397,1768083044649,-800.0,0.00022,8]
[401264399,1768083044659,-800.0,0.00022,8]
[401264401,1768083044669,-800.0,0.00022,8]
[401264403,1768083044678,-800.0,0.00022,8]
[401264405,1768083044689,-800.0,0.00022,8]
[401264407,1768083044698,-800.0,0.00022,8]
[401264409,1768083044707,-800.0,0.00022,8]
[401264411,1768083044717,-800.0,0.00022,8]
[401264413,1768083044727,-800.0,0.00022,8]
[401264415,1768083044736,-800.0,0.00022,8]
[401264417,1768083044746,-800.0,0.00022,8]
[401264419,1768083044755,-800.0,0.00022,8]
[401264421,1768083044765,-800.0,0.00022,8]
[401264423,1768083044774,-229067.29320683,0.00022,4]
[401264425,1768083044783,-796.56982681,0.00022,7]
[401264427,1768083044793,-163.53,0.00022,2]
[401264429,1768083044803,-160.0,0.00022,2]
[401264431,1768083044812,-7693.05,0.00022,7]
[401264433,1768083044821,-163777.7,0.00022,2]
[401264435,1768083044831,-151.0,0.00022,2]
[401264438,1768083044840,-151.0,0.00022,2]
[401264439,1768083044850,-151.0,0.00022,2]
[401264442,1768083044860,-152.0,0.00022,2]
[401264444,1768083044869,-151.0,0.00022,2]
[401264446,1768083044879,-152.0,0.00022,2]
[401264448,1768083044888,-151.0,0.00022,2]
[401264450,1768083044898,-152.0,0.00022,2]
[401264452,1768083044908,-265.165107,0.00022,2]
[401264454,1768083044918,-151.0,0.00022,2]
[401264456,1768083044928,-151.0,0.00022,2]
[401264457,1768083044938,-663.498204,0.00022,2]
[401264460,1768083044948,-663.498204,0.00022,2]
[401264461,1768083044958,-663.498204,0.00022,2]
[401264464,1768083044969,-663.498204,0.00022,2]
[401264466,1768083044978,-151.0,0.00022,2]
[401264468,1768083044988,-151.0,0.00022,2]
[401264470,1768083044999,-151.0,0.00022,2]
[401264472,1768083045008,-151.0,0.00022,2]
[401264474,1768083045017,-151.0,0.00022,2]
[401264476,1768083045028,-151.0,0.00022,2]
[401264478,1768083045038,-151.0,0.00022,2]
[401264480,1768083045047,-151.0,0.00022,2]
[401264482,1768083045057,-151.0,0.00022,2]
[401264484,1768083045067,-151.0,0.00022,2]
[401264486,1768083045076,-151.0,0.00022,2]
[401264488,1768083045086,-306.568628,0.00022,2]
[401264490,1768083045096,-151.0,0.00022,2]
[401264492,1768083045106,-151.0,0.00022,2]
[401264494,1768083045115,-500.0,0.00022028,2]
[401264496,1768083045125,-500.0,0.00022028,2]
[401264498,1768083045134,-3016.08962816,0.00022044,2]
[401264500,1768083045146,-1456.0,0.00022078,2]
[401264502,1768083045156,-197.58766124,0.00022082,2]
[401264504,1768083045165,-500.0,0.00022082,2]
[401264506,1768083045174,-168.0,0.00022089,2]
[401264508,1768083045184,-493.82815767,0.000221,2]
[401264510,1768083045194,-239.95866114,0.0002211,2]
[401264512,1768083045204,-500.0,0.00022137,2]
[401264514,1768083045213,-550.0,0.00022164,2]
[401264516,1768083045222,-168.0,0.00022189,2]
[401264518,1768083045232,-500.0,0.00022192,2]
[401264520,1768083045242,-983.5,0.00022199,10]
[401264522,1768083045251,-166.66,0.0002223,2]
[401264524,1768083045261,-500.0,0.00022247,2]
[401264526,1768083045271,-8760.54377092,0.00022262,2]
[401264528,1768083045281,-18372.0,0.00022265,2]
[401264530,1768083045290,-1000.0,0.00022279,2]
[401264532,1768083045300,-2000.0,0.000223,2]
[401264534,1768083045310,-500.0,0.00022302,2]
[401264536,1768083045319,-150.0,0.00022315,2]
[401264538,1768083045330,-150.0,0.00022315,2]
[401264540,1768083045345,-150.0,0.00022315,2]
[401264542,1768083045355,-150.0,0.00022315,2]
[401264545,1768083045365,-150.0,0.00022315,2]
[401264547,1768083045375,-150.0,0.00022315,2]
[401264549,1768083045384,-150.0,0.00022315,2]
[401264550,1768083045394,-150.0,0.00022315,2]
[401264553,1768083045403,-150.0,0.00022315,2]
[401264555,1768083045413,-150.0,0.00022315,2]
[401264556,1768083045422,-150.0,0.00022315,2]
[401264558,1768083045432,-150.0,0.00022315,2]
[401264560,1768083045441,-150.0,0.00022315,2]
[401264563,1768083045451,-150.0,0.00022315,2]
[401264564,1768083045461,-150.0,0.00022315,2]
[401264567,1768083045471,-150.0,0.00022315,2]
[401264569,1768083045480,-1323.4,0.00022334,2]
[401264571,1768083045490,-543.85947275,0.00022356,2]
[401264573,1768083045501,-500.0,0.00022466,2]
[401264575,1768083045511,-150.0,0.0002247,4]
[401264577,1768083045520,-35448.99585961,0.000225,2]
[401264579,1768083045533,-168.0,0.00022505,2]
[401264581,1768083045543,-255.16097283,0.000226,2]
[401264583,1768083045552,-150.0,0.00022625,4]
[401264585,1768083045563,-522.54046735,0.0002271,2]
[401264587,1768083045572,-370.91372403,0.00022712,2]
[401264589,1768083045581,-168.0,0.00022715,2]
[401264591,1768083045591,-1000.0,0.0002274,2]
[401264593,1768083045601,-150.0,0.0002278,4]
[401264595,1768083045611,-150.0,0.00022839,2]
[401264597,1768083045621,-168.0,0.00022839,2]
[401264599,1768083045631,-19928.0,0.00022858,2]
[401264601,1768083045641,-1000.0,0.000229,2]
[401264604,1768083045651,-166.66,0.00022918,2]
[401264605,1768083045660,-150.0,0.00022935,4]
[401264631,1768083045671,-168.0,0.00022953,2]
[401264634,1768083045909,-634.74721497,0.00023,7]
[401264636,1768083045919,-181789.08858272,0.00023,2]
[401264638,1768083045929,-1006.55935359,0.00023,2]
[401264640,1768083045939,-5999.5,0.00023,2]
[401264642,1768083045949,-400.0,0.00023,2]
[401264645,1768083045959,-249.384576,0.00023,2]
[401264648,1768083045969,-151.0,0.00023,2]
[401264650,1768083045979,-162.349803,0.00023,2]
[401264652,1768083045989,-151.0,0.00023,2]
[401264654,1768083045998,-151.0,0.00023,2]
[401264656,1768083046008,-151.0,0.00023,2]
[401264658,1768083046018,-291.438741,0.00023,2]
[401264660,1768083046028,-291.438741,0.00023,2]
[401264662,1768083046046,-291.438741,0.00023,2]
[401264664,1768083046060,-291.438741,0.00023,2]
[401264666,1768083046069,-1000.0,0.00023014,2]
[401264668,1768083046079,-150.0,0.0002309,4]
[401264670,1768083046088,-19928.0,0.00023093,2]
[401264672,1768083046097,-168.0,0.00023098,2]
[401264674,1768083046108,-2582.84488159,0.000231,2]
[401264676,1768083046117,-168.0,0.00023114,2]
[401264678,1768083046126,-150.0,0.00023142,4]
[401264680,1768083046136,-150.0,0.00023142,4]
[401264682,1768083046145,-384.04059328,0.00023145,2]
[401264684,1768083046154,-196.49342566,0.00023145,2]
[401264686,1768083046164,-3016.08962816,0.00023196,2]
[401264688,1768083046174,-239.24145092,0.000232,2]
[401264690,1768083046184,-7693.05,0.000232,7]
[401264693,1768083046194,-163777.7,0.000232,2]
[401264695,1768083046204,-151.0,0.000232,2]
[401264697,1768083046213,-151.0,0.000232,2]
[401264699,1768083046222,-663.498204,0.000232,2]
[401264700,1768083046231,-663.498204,0.000232,2]
[401264703,1768083046240,-663.498204,0.000232,2]
[401264704,1768083046250,-663.498204,0.000232,2]
[401264706,1768083046260,-151.0,0.000232,2]
[401264709,1768083046271,-151.0,0.000232,2]
[401264711,1768083046281,-151.0,0.000232,2]
[401264713,1768083046290,-151.0,0.000232,2]
[401264715,1768083046299,-151.0,0.000232,2]
[401264717,1768083046309,-151.0,0.000232,2]
[401264719,1768083046318,-151.0,0.000232,2]
[401264721,1768083046327,-151.0,0.000232,2]
[401264723,1768083046336,-306.568628,0.000232,2]
[401264725,1768083046347,-151.0,0.000232,2]
[401264727,1768083046357,-151.0,0.000232,2]
[401264729,1768083046367,-1000.0,0.00023244,7]
[401264731,1768083046377,-150.0,0.00023245,4]
[401264733,1768083046386,-1000.0,0.00023288,2]
[401264735,1768083046396,-206.72,0.00023301,2]
[401264737,1768083046406,-660.71,0.00023316,2]
[401264739,1768083046420,-19928.0,0.00023329,2]
[401264741,1768083046430,-150.0,0.000234,4]
[401264743,1768083046440,-186.24381303,0.00023455,2]
[401264745,1768083046450,-8760.54377092,0.00023475,2]
[401264747,1768083046459,-168.0,0.00023476,2]
[401264749,1768083046469,-200.0,0.000235,2]
[401264751,1768083046480,-150.0,0.00023555,4]
[401264753,1768083046489,-150.0,0.00023555,4]
[401264755,1768083046499,-150.0,0.00023555,4]
[401264757,1768083046509,-150.0,0.00023555,4]
[401264759,1768083046518,-1000.0,0.00023562,2]
[401264761,1768083046530,-19928.0,0.00023565,2]
[401264763,1768083046541,-168.0,0.00023599,2]
[401264765,1768083046550,-166.66,0.00023607,2]
[401264768,1768083046560,-150.0,0.0002371,4]
[401264770,1768083046571,-19928.0,0.000238,2]
[401264772,1768083046581,-1000.0,0.00023836,2]
[401264774,1768083046591,-150.0,0.00023865,4]
[401264776,1768083046601,-150.0,0.00023968,4]
[401264778,1768083046612,-150.0,0.00023968,4]
[401264779,1768083046622,-16673.09034768,0.00024,2]
[401264782,1768083046631,-1019.92500499,0.00024,2]
[401264784,1768083046640,-10347.30535756,0.00024,14]
[401264786,1768083046650,-3600.0,0.00024,2]
[401264788,1768083046660,-1233.45193161,0.00024,2]
[401264790,1768083046669,-150.0,0.0002402,4]
[401264792,1768083046679,-10494.5760138,0.00024036,2]
[401264794,1768083046688,-19928.0,0.00024036,2]
[401264796,1768083046696,-1000.0,0.0002411,2]
[401264798,1768083046705,-661.7,0.00024131,2]
[401264800,1768083046714,-482.91,0.00024131,2]
[401264802,1768083046723,-661.7,0.00024131,2]
[401264804,1768083046732,-661.7,0.00024131,2]
[401264806,1768083046741,-661.7,0.00024131,2]
[401264808,1768083046751,-998.0,0.00024171,2]
[401264809,1768083046760,-150.0,0.00024175,4]
[401264812,1768083046770,-421.39470484,0.0002421,2]
[401264814,1768083046779,-3691.35751438,0.0002421,2]
[401264816,1768083046788,-1323.4,0.00024271,2]
[401264818,1768083046798,-482.91,0.00024271,2]
[401264819,1768083046807,-482.91,0.00024271,2]
[401264821,1768083046816,-19928.0,0.00024272,2]
[401264824,1768083046826,-166.66,0.00024295,2]
[401264826,1768083046836,-207.17405157,0.00024304,2]
[401264828,1768083046845,-1000.0,0.00024305,2]
[401264830,1768083046855,-150.0,0.0002433,4]
[401264831,1768083046864,-3016.08962816,0.00024348,2]
[401264833,1768083046873,-1000.0,0.00024384,2]
[401264834,1768083046882,-501.0,0.00024397,2]
[401264835,1768083046891,-7693.05,0.000244,7]
[401264836,1768083046900,-21965.16810988,0.000244,2]
[401264913,1768083047687,-500.0,0.0001463,2]
[401264915,1768083047697,-113.0,0.00016055,2]
[401264917,1768083047708,-408.0,0.00016055,2]
[401264919,1768083047718,-97.9842,0.0001611,2]
[401265205,1768083068683,2086.23695602,7.945e-05,2]
[401265206,1768083068708,3707.03047698,7.945e-05,2]
[401265211,1768083401399,-336.0,0.00014477,2]
[401265212,1768083561946,-999.0,0.00014515,3]
[401265213,1768083582655,-1348.3,0.0001452,2]
[401265214,1768083707356,177.9,0.00014456,2]
[401265215,1768083718449,982.69,0.00014418,2]
[401265216,1768083751319,224.0,0.00014477,2]
[401265217,1768083827574,1452.78,0.00014455,2]
[401265218,1768083856603,200.0,0.00014415,2]
[401265222,1768083940128,173.71,0.00011483,2]
[401265240,1768084093540,1929.22270997,0.0001,2]
[401265242,1768084095270,391.03482826,7.888e-05,2]
[401265243,1768084102689,150.0,0.00014282,2]
[401265252,1768084130877,166.66,0.00013546,2]
[401265253,1768084131287,166.66,0.00013831,2]
[401265254,1768084131500,166.66,0.00014116,2]
[401265255,1768084131699,166.66,0.00014401,2]
[401265266,1768084232273,-166.66,0.00014687,2]
[401265268,1768084232283,-250.0,0.00014729,2]
[401265269,1768084232292,-1200.0,0.00014772,2]
[401265270,1768084232302,-7884.4893939,0.00014773,2]
[401265271,1768084232312,-183.83888792,0.00014773,2]
[401265272,1768084232321,-183.83888792,0.00014773,2]
[401265273,1768084232331,-150.0,0.0001486,2]
[401265274,1768084232340,-500.0,0.00014861,2]
[401265275,1768084232350,-500.61421208,0.00014861,2]
[401265276,1768084232359,-500.0,0.00014861,2]
[401265277,1768084232368,-231.40810775,0.00014861,2]
[401265278,1768084232379,-500.0,0.00014861,2]
[401265279,1768084232389,-344.34237676,0.00014861,2]
[401265280,1768084232399,-500.0,0.00014861,2]
[401265281,1768084232408,-167.73428703,0.00014861,2]
[401265282,1768084232418,-500.0,0.00014861,2]
[401265283,1768084232427,-500.0,0.00014861,2]
[401265284,1768084232437,-500.0,0.00014861,2]
[401265285,1768084232451,-500.0,0.00014861,2]
[401265287,1768084232460,-500.0,0.00014861,2]
[401265289,1768084232469,-500.0,0.00014861,2]
[401265291,1768084232478,-500.0,0.00014861,2]
[401265293,1768084232487,-500.0,0.00014861,2]
[401265295,1768084232497,-500.0,0.00014861,2]
[401265296,1768084232506,-500.0,0.00014861,2]
[401265297,1768084232515,-500.0,0.00014861,2]
[401265299,1768084232524,-500.0,0.00014861,2]
[401265301,1768084232533,-500.0,0.00014861,2]
[401265302,1768084232542,-500.0,0.00014861,2]
[401265303,1768084232551,-500.0,0.00014861,2]
[401265304,1768084232560,-500.0,0.00014861,2]
[401265305,1768084232570,-500.0,0.00014861,2]
[401265306,1768084232580,-500.0,0.00014861,2]
[401265307,1768084232590,-500.0,0.00014861,2]
[401265308,1768084232601,-500.0,0.00014861,2]
[401265309,1768084232611,-500.0,0.00014861,2]
[401265310,1768084232623,-500.0,0.00014861,2]
[401265311,1768084232632,-500.0,0.00014861,2]
[401265312,1768084232642,-487.40012978,0.00014861,2]
[401265313,1768084232652,-500.0,0.00014861,2]
[401265314,1768084232661,-500.0,0.00014861,2]
[401265315,1768084232671,-500.0,0.00014861,2]
[401265316,1768084232680,-500.0,0.00014861,2]
[401265317,1768084232689,-500.0,0.00014861,2]
[401265318,1768084232698,-500.0,0.00014861,2]
[401265319,1768084232708,-500.0,0.00014861,2]
[401265320,1768084232718,-500.0,0.00014861,2]
[401265321,1768084232728,-500.0,0.00014861,2]
[401265322,1768084232737,-500.0,0.00014861,2]
[401265323,1768084232746,-500.0,0.00014861,2]
[401265324,1768084232756,-650.0,0.00014861,2]
[401265325,1768084232765,-186.42024009,0.00014862,2]
[401265326,1768084232773,-883460.24123093,0.00014862,2]
[401265327,1768084232786,-2046.34284647,0.00014862,2]
[401265328,1768084232796,-999.0,0.00014862,2]
[401265329,1768084232807,-1446.7295,0.00014862,2]
[401265330,1768084232819,-14399.68715835,0.00014862,2]
[401265331,1768084232835,-16495.67000175,0.00014862,2]
[401265332,1768084232847,-4341.96999562,0.00014862,2]
[401265333,1768084232862,-76810.35926688,0.00014862,2]
[401265334,1768084232871,-500.0,0.00014873,2]
[401265335,1768084232880,-195.0,0.00014874,2]
[401265336,1768084232889,-1000.0,0.00014951,2]
[401265337,1768084232898,-24468.5877335,0.00014952,2]
[401265338,1768084232913,-54614.22648769,0.00014952,2]
[401265339,1768084232923,-618.15111719,0.00014952,2]
[401265340,1768084232932,-2759.0222,0.00014962,2]
[401265341,1768084232941,-236.6149,0.00014962,2]
[401265342,1768084232950,-3562.4283,0.00014962,2]
[401265343,1768084232960,-89040.49,0.00014962,2]
[401265344,1768084232970,-166.66,0.00014972,2]
[401265345,1768084232980,-1748.728,0.00014972,2]
[401265346,1768084232990,-174.572,0.00014972,2]
[401265347,1768084232999,-632.12618077,0.00014985,2]
[401265348,1768084233009,-500.0,0.00015064,2]
[401265349,1768084233018,-200.0,0.00015064,2]
[401265350,1768084233028,-500.0,0.00015064,2]
[401265351,1768084233038,-500.0,0.00015064,2]
[401265352,1768084233048,-500.0,0.00015064,2]
[401265353,1768084233057,-500.0,0.00015064,2]
[401265354,1768084233067,-500.0,0.00015064,2]
[401265355,1768084233076,-500.0,0.00015064,2]
[401265356,1768084233086,-500.0,0.00015064,2]
[401265357,1768084233095,-494.32740785,0.00015064,2]
[401265358,1768084233105,-500.0,0.00015064,2]
[401265359,1768084233115,-590.74860506,0.00015064,2]
[401265360,1768084233124,-151.0,0.00015064,2]
[401265361,1768084233134,-151.0,0.00015064,2]
[401265362,1768084233144,-151.0,0.00015064,2]
[401265363,1768084233153,-151.0,0.00015064,2]
[401265364,1768084233163,-151.0,0.00015064,2]
[401265365,1768084233173,-151.0,0.00015064,2]
[401265366,1768084233182,-151.0,0.00015064,2]
[401265367,1768084233193,-151.0,0.00015064,2]
[401265368,1768084233207,-151.0,0.00015064,2]
[401265369,1768084233218,-151.0,0.00015064,2]
[401265370,1768084233228,-151.0,0.00015064,2]
[401265371,1768084233239,-151.0,0.00015064,2]
[401265372,1768084233249,-200.0,0.00015064,2]
[401265373,1768084233260,-915.23,0.00015064,2]
[401265374,1768084233274,-150.99,0.00015071,2]
[401265375,1768084233284,-43797.22156077,0.00015071,2]
[401265381,1768084238291,-680.48451678,0.00015071,2]
[401265382,1768084238303,-9102.8151,0.00015071,2]
[401265383,1768084238314,-826.21292711,0.00015071,2]
[401265384,1768084238326,-2590.17982511,0.00015071,2]
[401265385,1768084238411,-1639.05724554,0.00015071,2]
[401265386,1768084238424,-1868.939175,0.00015071,2]
[401265387,1768084238436,-3064.0,0.00015071,2]
[401265388,1768084238471,-1811.80915,0.00015071,2]
[401265389,1768084238484,-531.29732546,0.00015071,2]
[401265566,1768084240448,-785.619001,0.00015071,2]
[401265568,1768084240460,-2090.40897658,0.00015071,2]
[401265570,1768084240471,-373.5644,0.00015071,2]
[401265575,1768084240517,-395.472,0.00015071,2]
[401265578,1768084240529,-547.23973848,0.00015071,2]
[401265580,1768084240541,-857.81402166,0.00015071,2]
[401265582,1768084240552,-4233.18646971,0.00015071,2]
[401265584,1768084240563,-617.65400901,0.00015071,2]
[401265587,1768084240580,-4538.61685727,0.00015071,2]
[401265589,1768084240591,-7268.00672097,0.00015071,2]
[401265591,1768084240602,-25574.07097955,0.00015071,2]
[401265593,1768084240611,-299.99,0.00015071,2]
[401265595,1768084240620,-467.01,0.00015071,2]
[401265597,1768084240629,-9999.99,0.00015071,2]
[401265599,1768084240638,-9999.99,0.00015071,2]
[401265601,1768084240647,-500.0,0.00015072,2]
[401265603,1768084240656,-500.0,0.00015072,2]
[401265605,1768084240665,-500.0,0.00015072,2]
[401265628,1768084240923,-500.0,0.00015072,2]
[401265630,1768084240934,-500.0,0.00015072,2]
[401265632,1768084240945,-500.0,0.00015072,2]
[401265634,1768084240954,-279.96,0.00015072,2]
[401265635,1768084240965,-520.12765794,0.00015072,2]
[401265637,1768084240975,-500.0,0.00015072,2]
[401265639,1768084240986,-500.0,0.00015072,2]
[401265641,1768084240996,-500.0,0.00015072,2]
[401265643,1768084241005,-500.0,0.00015072,2]
[401265645,1768084241015,-500.0,0.00015072,2]
[401265646,1768084241024,-500.0,0.00015072,2]
[401265648,1768084241034,-500.0,0.00015072,2]
[401265650,1768084241043,-500.0,0.00015072,2]
[401265652,1768084241053,-500.0,0.00015072,2]
[401265654,1768084241061,-500.0,0.00015072,2]
[401265656,1768084241070,-500.0,0.00015072,2]
[401265657,1768084241079,-500.0,0.00015072,2]
[401265659,1768084241089,-500.0,0.00015072,2]
[401265661,1768084241098,-500.0,0.00015072,2]
[401265663,1768084241107,-500.0,0.00015072,2]
[401265665,1768084241116,-500.0,0.00015072,2]
[401265666,1768084241125,-500.0,0.00015072,2]